bitfinex-derivatives/quotes_SOLF0:USTF0_20241211
["timestamp","ask_amount","ask_price","bid_price","bid_amount"]
[1733957611685,6.4667422,228.35,228.31,4.3682]
[1733957614887,2.1879,228.36,228.31,4.3682]
[1733957615082,8.6546422,228.36,228.31,4.3682]
[1733957617293,1.3526,228.37,227.99,6.93328006]
[1733957617294,6.4667422,228.32,227.99,6.93328006]
[1733957617488,6.4667422,228.27,228.22,5.28897483]
[1733957618591,6.4667422,228.27,228.23,2.1891]
[1733957619186,2.1887,228.28,228.22,5.28897483]
[1733957619386,8.6554422,228.28,228.24,2.189]
[1733957620293,6.4667422,228.28,228.24,2.189]
[1733957621397,8.6552422,228.29,228.24,2.189]
[1733957624898,2.1885,228.29,228.25,2.1889]
[1733957631198,8.6552422,228.29,228.25,2.1889]
[1733957633200,6.4667422,228.29,228.23,2.08]
[1733957633498,6.4667422,228.29,228.26,2.1888]
[1733957633902,2.1884,228.3,228.26,2.1888]
[1733957634200,1.4713,228.31,228.25,6.4667422]
[1733957634599,1.4713,228.31,228.23,8.5467422]
[1733957635596,1.4713,228.31,228.25,6.4667422]
[1733957635997,6.4667422,228.33,228.25,6.4667422]
[1733957637693,6.4667422,228.33,228.3,2.1884]
[1733957638396,2.1879,228.35,228.3,2.1884]
[1733957638600,6.4667422,228.32,228.3,2.1884]
[1733957640703,1.3526,228.37,228.28,2.08]
[1733957641002,6.4667422,228.34,228.32,2.1882]
[1733957643397,2.1879,228.36,228.32,2.1882]
[1733957643604,6.4667422,228.34,228.32,2.1882]
[1733957646900,6.4667422,228.34,228.31,2.1883]
[1733957647203,6.4667422,228.34,228.32,4.91653726]
[1733957647498,6.4667422,228.34,228.31,8.27477249]
[1733957647694,6.4667422,228.34,228.32,4.91665599]
[1733957647900,6.4667422,228.34,228.31,8.27477249]
[1733957648198,6.4667422,228.34,228.32,4.91664404]
[1733957648405,6.4667422,228.34,228.31,8.27477249]
[1733957648702,6.4667422,228.34,228.32,4.91676442]
[1733957649004,6.4667422,228.34,228.31,8.27477249]
[1733957649299,6.4667422,228.34,228.32,11.03146871]
[1733957649603,6.4667422,228.35,228.32,6.08647249]
[1733957651002,2.1879,228.36,228.32,6.08647249]
[1733957651202,6.4667422,228.35,228.33,4.94585726]
[1733957651399,6.4667422,228.35,228.32,8.27467249]
[1733957651903,6.4667422,228.35,228.33,4.94576082]
[1733957652106,6.4667422,228.35,228.32,8.27467249]
[1733957652407,6.4667422,228.35,228.33,4.94604826]
[1733957652606,6.4667422,228.35,228.32,8.27467249]
[1733957652800,6.4667422,228.35,228.33,4.94594351]
[1733957653004,6.4667422,228.35,228.32,8.27467249]
[1733957653201,6.4667422,228.35,228.33,4.9459438]
[1733957653505,2.1879,228.36,228.32,8.27467249]
[1733957654404,2.1879,228.36,228.33,4.94604886]
[1733957654701,2.1879,228.36,228.32,8.27467249]
[1733957655501,2.1879,228.36,228.33,4.9462187]
[1733957655706,2.1879,228.36,228.32,8.27467249]
[1733957656005,2.1879,228.36,228.33,4.94622005]
[1733957656306,2.1879,228.36,228.32,8.27467249]
[1733957656505,2.1879,228.36,228.33,4.94634919]
[1733957656707,2.1879,228.36,228.32,8.27467249]
[1733957657006,2.1879,228.36,228.33,4.94639826]
[1733957657206,2.1879,228.36,228.32,8.27467249]
[1733957657407,2.1879,228.36,228.33,4.94654009]
[1733957657608,2.1879,228.36,228.32,8.27467249]
[1733957657804,2.1879,228.36,228.33,4.946584]
[1733957658110,2.1879,228.36,228.32,8.27467249]
[1733957658311,2.1879,228.36,228.33,4.94685171]
[1733957658509,2.1879,228.36,228.32,8.27467249]
[1733957658710,2.1879,228.36,228.33,4.94695075]
[1733957658909,2.1879,228.36,228.32,8.27467249]
[1733957659112,2.1879,228.36,228.33,4.94694197]
[1733957659309,2.1879,228.36,228.32,8.27467249]
[1733957659506,2.1879,228.36,228.33,4.94712448]
[1733957659706,2.1879,228.36,228.32,8.27467249]
[1733957660009,2.1879,228.36,228.33,4.9472213]
[1733957660204,2.1879,228.36,228.32,8.27467249]
[1733957660400,2.1879,228.36,228.33,4.94762127]
[1733957660602,2.1879,228.36,228.32,8.27467249]
[1733957660804,2.1879,228.36,228.33,4.94775022]
[1733957661010,2.1879,228.36,228.32,8.27467249]
[1733957661201,2.1879,228.36,228.33,4.94774462]
[1733957661404,2.1879,228.36,228.32,8.27467249]
[1733957661607,2.1879,228.36,228.33,4.94820587]
[1733957661807,2.1879,228.36,228.32,8.27467249]
[1733957662005,2.1879,228.36,228.33,4.94832796]
[1733957662214,2.1879,228.36,228.32,26.53351679]
[1733957662510,2.1879,228.36,228.33,4.94907055]
[1733957662713,2.1879,228.36,228.32,26.53351679]
[1733957663012,2.1879,228.36,228.33,4.9492176]
[1733957663205,2.1879,228.36,228.33,6.08647249]
[1733957664211,2.1879,228.36,228.34,4.95085994]
[1733957664506,2.1879,228.36,228.33,6.08647249]
[1733957665108,2.1879,228.36,228.34,4.95196725]
[1733957665409,2.1879,228.36,228.33,6.08647249]
[1733957665716,2.1879,228.36,228.34,4.95208822]
[1733957665914,2.1879,228.36,228.33,6.08647249]
[1733957666109,2.1879,228.36,228.34,4.95325121]
[1733957666315,2.1879,228.36,228.33,6.08647249]
[1733957666510,2.1879,228.36,228.34,4.95325119]
[1733957666811,2.1879,228.36,228.33,6.08647249]
[1733957667011,2.1879,228.36,228.34,4.95341923]
[1733957667212,2.1879,228.36,228.33,6.08647249]
[1733957667411,2.1879,228.36,228.34,4.95517976]
[1733957667615,2.1879,228.36,228.34,6.08647249]
[1733957668208,2.1879,228.36,228.35,4.95747622]
[1733957669517,2.1879,228.36,228.35,11.04394871]
[1733957669714,2.1877,228.38,228.35,24.79395127]
[1733957669912,8.6544422,228.38,228.37,6.10343674]
[1733957670214,8.6544422,228.38,228.37,49.21144287]
[1733957670410,2.1877,228.38,228.37,49.21144287]
[1733957670609,7.8310422,228.39,228.37,43.10216906]
[1733957670811,7.8310422,228.39,228.38,11.06041012]
[1733957671017,10.0185422,228.39,228.38,11.06041012]
[1733957672111,3.5518,228.39,228.38,11.06041012]
[1733957672408,10.0185422,228.39,228.38,11.06041012]
[1733957672612,1.3643,228.39,228.38,11.06041012]
[1733957675613,2.1875,228.39,228.36,6.1029339]
[1733957675819,6.4667422,228.4,228.38,6.1029339]
[1733957676018,6.4667422,228.4,228.39,4.95351549]
[1733957676415,6.4667422,228.4,228.38,6.1029339]
[1733957676610,6.4667422,228.4,228.39,4.95242754]
[1733957676817,8.6542422,228.4,228.39,4.95242754]
[1733957677120,8.6542422,228.4,228.37,2.1877]
[1733957680426,6.4667422,228.4,228.37,2.1877]
[1733957683222,2.1874,228.41,228.37,2.1877]
[1733957687229,2.1874,228.41,228.38,4.89937035]
[1733957687432,2.1874,228.41,228.37,8.2906339]
[1733957687731,2.1874,228.41,228.38,4.89936985]
[1733957688030,2.1874,228.41,228.37,8.2906339]
[1733957688329,8.6542422,228.4,228.38,4.89918909]
[1733957688529,6.4667422,228.4,228.37,8.2906339]
[1733957689026,1.98,228.44,228.37,8.2906339]
[1733957689439,2.1875,228.4,228.37,8.2906339]
[1733957689734,2.1875,228.4,228.38,4.89909258]
[1733957689926,2.1875,228.4,228.37,8.2906339]
[1733957690129,6.4667422,228.42,228.38,4.89908142]
[1733957690325,2.1874,228.41,228.37,8.2906339]
[1733957690530,2.1874,228.41,228.38,4.89905583]
[1733957690733,2.1874,228.41,228.37,8.2906339]
[1733957690937,2.1874,228.41,228.38,4.89902753]
[1733957691135,2.1874,228.41,228.37,8.2906339]
[1733957691334,2.1874,228.41,228.38,4.89904177]
[1733957691537,2.1874,228.41,228.37,8.2906339]
[1733957691732,2.1874,228.41,228.38,4.89913118]
[1733957692035,2.1874,228.41,228.38,2.1876]
[1733957695432,193.0,228.66,228.4,6.4667422]
[1733957695632,4.3699,228.67,228.44,24.41324413]
[1733957695633,4.1433,228.55,228.44,24.41324413]
[1733957695832,6.4667422,228.49,228.45,4.89955568]
[1733957696135,6.4667422,228.49,228.44,6.1029339]
[1733957696335,6.4667422,228.49,228.45,4.89882115]
[1733957696638,6.4667422,228.49,228.44,6.1029339]
[1733957696933,6.4667422,228.49,228.43,6.1029339]
[1733957697132,5.15861773,228.52,228.44,4.8967325]
[1733957697332,6.4667422,228.49,228.43,6.1029339]
[1733957697628,6.4667422,228.49,228.43,2.1871]
[1733957698137,6.4667422,228.49,228.44,4.89550977]
[1733957698332,6.4667422,228.49,228.43,8.2900339]
[1733957698541,6.4667422,228.49,228.43,2.1871]
[1733957699143,6.4667422,228.49,228.44,2.187]
[1733957701435,2.1864,228.51,228.45,2.1869]
[1733957701643,6.4667422,228.51,228.43,12.5696761]
[1733957701837,6.4667422,228.51,228.44,4.89522616]
[1733957702036,6.4667422,228.51,228.43,30.87998633]
[1733957702238,6.4667422,228.51,228.44,10.99679841]
[1733957702544,6.4667422,228.51,228.43,12.5696761]
[1733957702841,2.1863,228.52,228.46,2.1868]
[1733957703143,2.48,228.53,228.46,2.1868]
[1733957703344,6.4667422,228.52,228.47,2.1868]
[1733957706249,2.1862,228.53,228.47,2.1868]
[1733957706449,6.4667422,228.52,228.47,2.1868]
[1733957708351,6.4667422,228.5,228.47,2.1868]
[1733957709344,6.4667422,228.52,228.47,2.1868]
[1733957711754,2.1862,228.53,228.45,6.4667422]
[1733957711955,6.4667422,228.52,228.45,6.4667422]
[1733957712246,6.4667422,228.52,228.47,2.1867]
[1733957712449,6.4667422,228.52,228.45,6.4667422]
[1733957713649,6.4667422,228.52,228.48,2.1866]
[1733957715453,6.4667422,228.52,228.45,6.4667422]
[1733957715856,6.4667422,228.52,228.5,2.1865]
[1733957716059,4.1433,228.55,228.5,2.1865]
[1733957716359,6.4667422,228.53,228.5,2.1865]
[1733957717055,6.4667422,228.53,228.41,51.17025148]
[1733957717056,6.4667422,228.51,228.42,6.1029339]
[1733957717257,6.4667422,228.45,228.38,6.4667422]
[1733957717561,6.4667422,228.45,228.4,2.1874]
[1733957718665,8.6537422,228.45,228.4,2.1874]
[1733957720764,2.1871,228.44,228.36,8.5829339]
[1733957720964,6.4667422,228.45,228.39,2.1875]
[1733957721761,6.4667422,228.45,228.4,2.1874]
[1733957721762,8.6538422,228.45,228.4,2.1874]
[1733957723568,2.1871,228.44,228.4,2.1874]
[1733957724371,1.3481,228.46,228.43,6.4667422]
[1733957724566,1.3481,228.46,228.41,6.4667422]
[1733957724967,1.3481,228.46,228.42,2.1872]
[1733957725168,1.3481,228.46,228.41,12.5696761]
[1733957725470,1.3481,228.46,228.42,4.88418628]
[1733957725675,1.3481,228.46,228.41,12.5696761]
[1733957725967,2.1868,228.48,228.42,4.88492849]
[1733957726164,2.1868,228.48,228.41,30.87998633]
[1733957726369,2.1868,228.48,228.42,4.88491288]
[1733957726569,2.1868,228.48,228.42,6.1029339]
[1733957727173,2.1869,228.46,228.42,6.1029339]
[1733957727368,2.1869,228.46,228.41,6.1029339]
[1733957727570,2.1869,228.46,228.42,4.88621704]
[1733957727875,2.1869,228.46,228.41,8.2902339]
[1733957728169,2.1869,228.46,228.42,4.88685229]
[1733957728375,2.1869,228.46,228.41,6.1029339]
[1733957728576,2.1869,228.46,228.42,4.88684862]
[1733957728768,2.1869,228.46,228.41,24.41324413]
[1733957728969,2.1869,228.46,228.42,4.88784567]
[1733957729167,2.1869,228.46,228.41,24.41324413]
[1733957729369,2.1869,228.46,228.42,4.88784608]
[1733957729579,2.1869,228.46,228.42,2.1873]
[1733957729777,2.1869,228.46,228.42,8.2902339]
[1733957730777,2.1869,228.46,228.43,4.88958629]
[1733957730978,2.1869,228.46,228.42,8.2902339]
[1733957731278,2.1869,228.46,228.43,4.88957631]
[1733957731482,2.1869,228.46,228.42,8.2902339]
[1733957731676,2.1869,228.46,228.43,4.88972793]
[1733957731973,2.1869,228.46,228.42,8.2902339]
[1733957732174,2.1869,228.46,228.43,4.88950203]
[1733957732383,2.1869,228.46,228.42,8.2902339]
[1733957732573,2.1869,228.46,228.43,4.88950203]
[1733957732877,2.1869,228.46,228.42,8.2902339]
[1733957733077,2.1869,228.46,228.43,4.88945888]
[1733957733378,2.1869,228.46,228.42,8.2902339]
[1733957733579,2.1869,228.46,228.43,4.88945888]
[1733957733770,2.1869,228.46,228.43,2.1872]
[1733957734175,2.48,228.51,228.42,12.5696761]
[1733957734473,6.4667422,228.5,228.45,2.187]
[1733957735479,8.6532422,228.5,228.45,2.187]
[1733957735775,2.1864,228.52,228.47,2.1868]
[1733957736081,6.4667422,228.51,228.47,2.1868]
[1733957739686,3.9226,228.54,228.44,48.69025148]
[1733957739876,6.4667422,228.46,228.4,18.31031023]
[1733957740080,6.4667422,228.46,228.41,4.88899108]
[1733957740281,2.48,228.48,228.42,4.88899108]
[1733957740581,6.4667422,228.47,228.4,2.1874]
[1733957740776,6.4667422,228.47,228.41,4.86033624]
[1733957740980,6.4667422,228.47,228.4,2.1874]
[1733957741176,2.48,228.48,228.44,2.187]
[1733957741385,2.48,228.48,228.41,6.4667422]
[1733957741780,4.6667,228.48,228.43,2.1871]
[1733957741977,2.1867,228.48,228.41,24.77705243]
[1733957742184,2.1867,228.48,228.42,4.86016826]
[1733957742384,2.1867,228.48,228.43,4.86016826]
[1733957742583,8.6533422,228.5,228.44,7.04732382]
[1733957742883,8.6533422,228.5,228.44,2.1871]
[1733957743487,2.1866,228.49,228.45,4.86001557]
[1733957743685,6.4667422,228.5,228.46,4.86010552]
[1733957743987,2.48,228.51,228.45,6.4667422]
[1733957744186,2.48,228.51,228.46,4.86009239]
[1733957744486,2.48,228.51,228.45,6.4667422]
[1733957744685,2.48,228.51,228.46,4.86006605]
[1733957744885,2.48,228.51,228.45,24.77705243]
[1733957745080,2.48,228.51,228.46,4.86005239]
[1733957745286,2.48,228.51,228.45,24.77705243]
[1733957745591,4.6665,228.51,228.46,7.04686433]
[1733957745789,4.6665,228.51,228.46,2.1868]
[1733957746390,3.9226,228.54,228.45,24.77705243]
[1733957746588,8.6530422,228.53,228.48,2.1866]
[1733957749991,2.1863,228.53,228.48,2.1866]
[1733957750187,2.1863,228.53,228.49,2.1866]
[1733957750686,2.1861,228.54,228.49,6.4667422]
[1733957750882,1.332,228.58,228.51,2.1864]
[1733957751284,6.4667422,228.57,228.51,2.1864]
[1733957752192,2.1859,228.56,228.53,6.4667422]
[1733957752393,2.48,228.62,228.53,6.4667422]
[1733957752595,6.4667422,228.6,228.53,6.4667422]
[1733957753092,2.1857,228.58,228.51,6.4667422]
[1733957753294,2.1857,228.58,228.53,6.4667422]
[1733957753494,6.4667422,228.6,228.53,6.4667422]
[1733957753983,2.1857,228.58,228.54,2.1861]
[1733957754692,2.1857,228.59,228.54,2.1861]
[1733957755108,8.6524422,228.59,228.54,2.1861]
[1733957755498,2.48,228.61,228.55,2.186]
[1733957755697,6.4667422,228.6,228.55,2.186]
[1733957755909,2.48,228.61,228.55,2.186]
[1733957756408,8.9467422,228.61,228.55,2.186]
[1733957756605,2.1855,228.6,228.55,2.186]
[1733957756908,8.03745639,228.65,228.55,2.186]
[1733957756909,1.3949,228.65,228.58,2.1857]
[1733957757108,2.38,228.64,228.58,2.1857]
[1733957757309,6.4667422,228.62,228.58,2.1857]
[1733957759002,8.6518422,228.65,228.59,2.1856]
[1733957759910,8.6518422,228.65,228.57,6.4667422]
[1733957760210,8.6518422,228.65,228.6,2.1855]
[1733957761112,6.4667422,228.65,228.59,2.1856]
[1733957761309,6.4667422,228.65,228.57,6.4667422]
[1733957761609,6.4667422,228.67,228.59,6.4667422]
[1733957761805,2.1846,228.71,228.62,2.1853]
[1733957762007,6.4667422,228.67,228.62,2.1853]
[1733957763711,8.6516422,228.67,228.62,2.1853]
[1733957765113,8.6516422,228.67,228.63,2.1852]
[1733957765313,2.1849,228.67,228.63,2.1852]
[1733957772210,2.1849,228.67,228.63,8.6519422]
[1733957772620,2.1848,228.68,228.63,8.6519422]
[1733957773415,2.1848,228.68,228.64,2.1852]
[1733957775113,2.38,228.73,228.65,6.4667422]
[1733957775318,2.1845,228.71,228.67,2.1849]
[1733957775513,6.4667422,228.72,228.65,6.4667422]
[1733957775717,2.38,228.73,228.67,6.4667422]
[1733957775919,6.4667422,228.74,228.67,6.4667422]
[1733957776125,2.1843,228.73,228.69,2.1846]
[1733957776418,7.8825422,228.75,228.69,2.1846]
[1733957776715,10.0666422,228.75,228.71,2.1845]
[1733957776916,6.4667422,228.75,228.67,6.4667422]
[1733957777313,8.6508422,228.75,228.69,2.1846]
[1733957777524,8.6508422,228.75,228.67,6.4667422]
[1733957777821,2.1841,228.75,228.67,6.4667422]
[1733957778013,8.6507422,228.76,228.72,2.1844]
[1733957778414,2.184,228.76,228.72,2.1844]
[1733957780819,8.6507422,228.76,228.72,2.1844]
[1733957781230,2.184,228.76,228.72,2.1844]
[1733957782521,2.184,228.76,228.73,2.1843]
[1733957782822,8.8267422,228.78,228.73,2.1843]
[1733957783023,2.36,228.78,228.71,6.4667422]
[1733957783220,8.8267422,228.78,228.71,6.4667422]
[1733957783417,8.8267422,228.78,228.74,2.1841]
[1733957784620,8.6505422,228.78,228.74,2.1841]
[1733957784823,94.9858913,228.81,228.75,2.184]
[1733957784824,97.3458913,228.81,228.75,2.184]
[1733957785127,6.4667422,228.8,228.75,2.184]
[1733957785727,2.1837,228.79,228.75,2.184]
[1733957788428,3.7288,228.83,228.75,8.6507422]
[1733957788633,3.7288,228.83,228.74,2.1842]
[1733957788822,6.4667422,228.8,228.74,8.6509422]
[1733957789224,3.7288,228.83,228.74,8.6509422]
[1733957789426,6.4667422,228.81,228.74,8.6509422]
[1733957789626,2.1837,228.79,228.74,8.6509422]
[1733957793937,2.1837,228.79,228.75,4.81875893]
[1733957794235,2.1837,228.79,228.74,8.6509422]
[1733957794426,2.1837,228.79,228.75,4.81874972]
[1733957794626,2.1837,228.79,228.74,8.6509422]
[1733957794827,2.1837,228.79,228.75,4.81965404]
[1733957795035,2.1837,228.79,228.74,2.1842]
[1733957795230,2.1837,228.79,228.75,11.28641354]
[1733957795426,2.1837,228.79,228.75,6.4667422]
[1733957797029,2.1837,228.79,228.76,4.82024475]
[1733957797228,2.1837,228.79,228.77,4.82024475]
[1733957797534,2.1837,228.79,228.75,24.77705243]
[1733957797731,2.1837,228.79,228.76,42.41405903]
[1733957797936,2.1837,228.79,228.77,4.82075109]
[1733957798134,2.1837,228.79,228.76,18.31031023]
[1733957798435,2.1837,228.79,228.75,24.77705243]
[1733957798637,2.1837,228.79,228.76,4.82161182]
[1733957798932,2.1837,228.79,228.75,24.77705243]
[1733957799231,2.1837,228.79,228.76,4.82161181]
[1733957799438,2.1837,228.79,228.75,24.77705243]
[1733957799736,2.1837,228.79,228.76,10.88768406]
[1733957799935,2.1837,228.79,228.76,6.06563543]
[1733957800740,2.1837,228.79,228.75,12.53237763]
[1733957800937,2.1837,228.79,228.76,4.82264766]
[1733957801142,2.1837,228.79,228.75,12.53237763]
[1733957801338,2.1837,228.79,228.76,4.82278767]
[1733957801539,2.1837,228.79,228.75,6.4667422]
[1733957802339,2.1837,228.79,228.75,12.53237763]
[1733957802540,2.1837,228.79,228.75,6.4667422]
[1733957802740,2.184,228.77,228.74,6.06563543]
[1733957803037,6.4667422,228.82,228.75,4.82446995]
[1733957803341,6.4667422,228.82,228.74,30.84268786]
[1733957803548,2.184,228.77,228.75,4.82553663]
[1733957803737,2.184,228.77,228.74,12.53237763]
[1733957803933,2.184,228.77,228.75,4.82552474]
[1733957804135,2.184,228.77,228.74,12.53237763]
[1733957804334,2.184,228.77,228.75,4.82553663]
[1733957804541,2.184,228.77,228.74,12.53237763]
[1733957805039,2.184,228.77,228.74,6.4667422]
[1733957805234,2.184,228.77,228.76,6.4667422]
[1733957805746,2.184,228.77,228.74,6.4667422]
[1733957808442,2.184,228.77,228.75,4.83331505]
[1733957808640,2.184,228.77,228.74,6.4667422]
[1733957809354,2.1838,228.79,228.75,2.1841]
[1733957809646,6.4667422,228.8,228.74,6.4667422]
[1733957810050,6.4667422,228.8,228.73,6.06563543]
[1733957810348,6.4667422,228.8,228.74,17.36842089]
[1733957810544,6.4667422,228.8,228.74,12.53237763]
[1733957810749,2.1839,228.77,228.74,12.53237763]
[1733957811349,2.1839,228.77,228.75,10.90398969]
[1733957811549,2.1839,228.77,228.75,6.06563543]
[1733957811747,2.1839,228.77,228.76,4.83994121]
[1733957813348,2.1839,228.77,228.76,10.90557664]
[1733957814352,6.4667422,228.82,228.76,10.90557664]
[1733957814545,6.4667422,228.82,228.77,4.83994121]
[1733957814850,6.4667422,228.82,228.76,6.06563543]
[1733957815050,6.4667422,228.82,228.77,4.84269067]
[1733957815249,6.4667422,228.82,228.76,6.06563543]
[1733957815451,6.4667422,228.82,228.77,4.84269067]
[1733957815649,2.1838,228.78,228.76,6.06563543]
[1733957815851,2.1838,228.78,228.77,4.84353916]
[1733957818451,2.1838,228.78,228.75,24.37594566]
[1733957818650,2.1838,228.78,228.76,4.84475724]
[1733957818849,2.1838,228.78,228.75,24.37594566]
[1733957819043,2.1838,228.78,228.76,4.84475959]
[1733957819245,2.1838,228.78,228.75,6.06563543]
[1733957819449,2.1838,228.78,228.76,10.91065991]
[1733957819645,2.1838,228.78,228.75,24.37594566]
[1733957819849,2.1838,228.78,228.76,4.84498955]
[1733957820050,2.1838,228.78,228.75,24.37594566]
[1733957820252,2.1838,228.78,228.76,4.84500346]
[1733957820453,2.1838,228.78,228.76,6.06563543]
[1733957821145,2.1837,228.79,228.77,4.84519193]
[1733957821349,2.1837,228.79,228.76,24.37594566]
[1733957821654,2.1837,228.79,228.77,4.84544042]
[1733957821853,2.1837,228.79,228.76,24.37594566]
[1733957822052,2.1837,228.79,228.77,4.84544209]
[1733957822251,2.1837,228.79,228.76,24.37594566]
[1733957822454,2.1837,228.79,228.77,4.84583563]
[1733957822753,2.1837,228.79,228.76,24.37594566]
[1733957822954,2.1837,228.79,228.77,4.84582179]
[1733957823157,2.1837,228.79,228.76,24.37594566]
[1733957823346,2.1837,228.79,228.77,10.91146465]
[1733957823550,2.1837,228.79,228.77,6.06563543]
[1733957823752,2.1837,228.79,228.76,24.37594566]
[1733957824051,2.1837,228.79,228.77,4.84578736]
[1733957824354,2.22,228.8,228.76,24.37594566]
[1733957824558,2.22,228.8,228.77,10.91136502]
[1733957824853,2.22,228.8,228.77,6.06563543]
[1733957825054,4.4036,228.81,228.78,10.91134591]
[1733957825244,4.4036,228.81,228.79,4.84559603]
[1733957825450,4.4036,228.81,228.78,6.06563543]
[1733957825649,4.4036,228.81,228.79,4.8448532]
[1733957825850,4.4036,228.81,228.78,6.06563543]
[1733957826054,4.4036,228.81,228.79,4.84483556]
[1733957826256,4.4036,228.81,228.78,24.37594566]
[1733957826450,4.4036,228.81,228.79,4.84472894]
[1733957826648,4.4036,228.81,228.78,6.06563543]
[1733957826853,4.4036,228.81,228.79,4.8438054]
[1733957827057,4.4036,228.81,228.78,6.06563543]
[1733957827359,2.1836,228.8,228.79,4.8438054]
[1733957832661,2.1836,228.8,228.78,6.06563543]
[1733957835364,2.1836,228.8,228.77,26.55984566]
[1733957835664,2.1836,228.8,228.78,4.83965457]
[1733957835865,2.1836,228.8,228.77,8.24953543]
[1733957836064,2.1836,228.8,228.78,4.83966694]
[1733957836265,2.1836,228.8,228.77,8.24953543]
[1733957836465,2.1836,228.8,228.78,4.83964831]
[1733957836660,2.1836,228.8,228.77,26.55984566]
[1733957836966,2.1836,228.8,228.78,4.83960316]
[1733957837161,2.1835,228.81,228.78,6.06563543]
[1733957837464,2.1835,228.81,228.77,26.55984566]
[1733957837764,2.1835,228.81,228.78,17.37182532]
[1733957837967,2.1835,228.81,228.79,4.83940569]
[1733957838265,2.1835,228.81,228.79,6.06563543]
[1733957838863,4.4035,228.82,228.79,6.06563543]
[1733957839368,4.4035,228.82,228.78,33.02648786]
[1733957839567,4.4035,228.82,228.79,10.90426095]
[1733957839862,4.4035,228.82,228.79,6.06563543]
[1733957840062,4.4035,228.82,228.78,33.02648786]
[1733957840269,4.4035,228.82,228.79,10.90425152]
[1733957840469,4.4035,228.82,228.79,6.06563543]
[1733957840969,4.4035,228.82,228.78,33.02648786]
[1733957841170,4.4035,228.82,228.79,10.90380594]
[1733957841471,2.22,228.82,228.78,30.84268786]
[1733957841670,2.22,228.82,228.79,7.02174108]
[1733957841867,2.22,228.82,228.79,8.24933543]
[1733957842364,2.1835,228.82,228.79,2.1837]
[1733957846572,2.16,228.83,228.79,2.1837]
[1733957846777,4.3433,228.84,228.8,7.0218498]
[1733957846977,4.3433,228.84,228.8,2.1836]
[1733957847275,2.1833,228.84,228.8,2.1836]
[1733957850780,2.16,228.85,228.8,2.1836]
[1733957850980,2.1833,228.83,228.79,26.55964566]
[1733957851180,2.1833,228.83,228.8,4.83731834]
[1733957851379,2.1833,228.83,228.79,26.55964566]
[1733957851582,2.1833,228.83,228.8,4.83730767]
[1733957851882,2.1833,228.83,228.8,6.06563543]
[1733957852584,2.1833,228.83,228.79,26.55964566]
[1733957852788,2.1833,228.83,228.8,4.83731034]
[1733957852988,2.1833,228.83,228.79,26.55964566]
[1733957853181,2.1833,228.83,228.8,4.83731034]
[1733957853381,2.1833,228.83,228.8,6.06563543]
[1733957856481,2.1833,228.83,228.81,4.83868013]
[1733957856686,2.1833,228.83,228.8,6.06563543]
[1733957856888,2.1833,228.83,228.81,4.83867987]
[1733957857081,2.1833,228.83,228.8,6.06563543]
[1733957857384,2.1833,228.83,228.81,4.83869179]
[1733957857585,2.1833,228.83,228.8,6.06563543]
[1733957857780,2.1833,228.83,228.81,4.8391329]
[1733957857976,2.1833,228.83,228.8,6.06563543]
[1733957858178,2.1833,228.83,228.81,4.83913484]
[1733957858381,2.1833,228.83,228.8,6.06563543]
[1733957858586,2.1833,228.83,228.81,4.83969371]
[1733957858887,2.1833,228.83,228.8,6.06563543]
[1733957859090,2.1833,228.83,228.81,4.83969371]
[1733957859277,2.1833,228.83,228.8,6.06563543]
[1733957859482,2.1833,228.83,228.81,4.83969371]
[1733957859786,2.1833,228.83,228.8,6.06563543]
[1733957859988,2.1833,228.83,228.81,4.84042167]
[1733957860190,2.1833,228.83,228.8,6.06563543]
[1733957860382,2.1833,228.83,228.81,4.84043452]
[1733957860583,2.1833,228.83,228.8,24.37594566]
[1733957860783,2.1833,228.83,228.81,4.84063943]
[1733957860987,2.1833,228.83,228.8,6.06563543]
[1733957861285,2.1833,228.83,228.81,4.84064138]
[1733957861486,2.1833,228.83,228.8,6.06563543]
[1733957861689,2.1833,228.83,228.81,4.84071841]
[1733957861986,2.1833,228.83,228.8,6.06563543]
[1733957862187,2.1833,228.83,228.81,4.84071841]
[1733957862386,2.1833,228.83,228.8,6.06563543]
[1733957862688,2.1833,228.83,228.81,4.84083268]
[1733957862887,2.1833,228.83,228.8,6.06563543]